bitfinex-derivatives/quotes_BTCF0:USTF0_20241003
["timestamp","ask_amount","ask_price","bid_price","bid_amount"]
[1727939817413,0.0038,61228.0,61227.0,0.065333]
[1727939817715,0.0967,61243.0,61233.0,0.065327]
[1727939817716,0.0038,61235.0,61233.0,0.065327]
[1727939817920,0.0038,61241.0,61234.0,0.0321]
[1727939818117,0.22914982,61243.0,61234.0,1.5321]
[1727939818418,0.195318,61242.0,61235.0,0.065325]
[1727939821009,0.205318,61242.0,61235.0,0.065325]
[1727939821210,0.211318,61242.0,61235.0,0.065325]
[1727939821407,0.13,61237.0,61231.0,0.0038]
[1727939821607,0.4908,61232.0,61227.0,0.0038]
[1727939821813,0.195333,61228.0,61223.0,0.0322]
[1727939822115,0.13,61224.0,61223.0,0.0322]
[1727939822914,0.13,61224.0,61221.0,0.38889273]
[1727939822915,0.13,61224.0,61221.0,0.00245012]
[1727939823109,0.065345,61216.0,61215.0,0.0038]
[1727939823314,0.065345,61216.0,61208.0,0.0038]
[1727939823620,0.13,61211.0,61205.0,0.0307]
[1727939824215,0.13,61209.0,61205.0,0.0307]
[1727939824615,0.13,61209.0,61200.0,0.1338]
[1727939824616,0.4908,61206.0,61200.0,0.0038]
[1727939824924,0.4908,61206.0,61197.0,0.06501762]
[1727939824925,0.13,61201.0,61196.0,0.0038]
[1727939825219,0.129,61197.0,61191.0,0.0038]
[1727939825422,0.13,61193.0,61187.0,0.0038]
[1727939825620,0.1262,61188.0,61186.0,0.0307]
[1727939826813,0.13,61192.0,61186.0,0.0307]
[1727939827619,0.001,61188.0,61186.0,0.0307]
[1727939827827,0.002,61188.0,61186.0,0.0307]
[1727939828516,0.132,61192.0,61186.0,0.0307]
[1727939828819,0.13,61188.0,61186.0,0.0307]
[1727939829322,0.131,61188.0,61186.0,0.0307]
[1727939829629,0.001,61188.0,61186.0,0.0307]
[1727939830211,0.002,61188.0,61186.0,0.0307]
[1727939830924,0.002,61188.0,61187.0,1.5]
[1727939832021,0.002,61188.0,61186.0,0.0307]
[1727939832928,0.001,61188.0,61187.0,0.3608]
[1727939833124,0.002,61188.0,61187.0,0.3608]
[1727939833318,0.13,61196.0,61187.0,0.3608]
[1727939833519,0.13,61196.0,61188.0,1.5]
[1727939834535,0.13,61200.0,61188.0,1.5]
[1727939834723,0.132,61196.0,61188.0,1.5]
[1727939835618,0.13,61192.0,61188.0,1.5]
[1727939835926,0.13,61189.0,61188.0,1.5]
[1727939837126,0.131,61189.0,61188.0,1.501]
[1727939837623,0.001,61189.0,61188.0,1.501]
[1727939838627,0.002,61189.0,61188.0,1.501]
[1727939839414,0.002,61189.0,61188.0,2.101]
[1727939839729,0.58741721,61242.0,61193.0,0.065369]
[1727939839730,0.13,61203.0,61193.0,0.065369]
[1727939840032,0.13,61203.0,61194.0,0.065368]
[1727939840415,0.13,61203.0,61195.0,1.5]
[1727939840919,0.3618,61202.0,61195.0,1.5]
[1727939841123,0.3628,61202.0,61195.0,1.5]
[1727939841523,0.3618,61202.0,61195.0,1.5]
[1727939841725,0.3628,61202.0,61195.0,1.5]
[1727939842125,0.13,61199.0,61195.0,1.5]
[1727939842526,0.13,61199.0,61195.0,1.501]
[1727939843220,0.13,61199.0,61195.0,1.5]
[1727939843422,0.131,61199.0,61195.0,1.502]
[1727939844222,0.132,61199.0,61195.0,1.502]
[1727939844423,0.002,61199.0,61195.0,1.502]
[1727939844619,0.002,61199.0,61197.0,0.065365]
[1727939844819,0.002,61199.0,61198.0,0.0313]
[1727939847017,0.002,61199.0,61198.0,0.0323]
[1727939849424,0.002,61199.0,61198.0,0.0625]
[1727939854430,0.002,61199.0,61198.0,0.4233]
[1727939856343,0.002,61199.0,61198.0,0.48852144]
[1727939856640,0.002,61199.0,61198.0,0.4233]
[1727939856833,0.002,61199.0,61198.0,0.48852144]
[1727939857539,0.002,61199.0,61198.0,0.4233]
[1727939861131,0.002,61199.0,61198.0,0.48852144]
[1727939862236,0.002,61199.0,61198.0,0.4233]
[1727939863437,0.002,61199.0,61198.0,0.3618]
[1727939863637,0.002,61199.0,61198.0,0.001]
[1727939863638,0.132,61199.0,61198.0,0.001]
[1727939863941,0.6222,61199.0,61198.0,0.001]
[1727939866230,1.583,61199.0,61198.0,0.001]
[1727939866431,1.583,61199.0,61191.0,0.0038]
[1727939866432,0.065368,61195.0,61191.0,0.0038]
[1727939866734,0.19537,61193.0,61187.0,0.0038]
[1727939866938,0.13,61186.0,61185.0,1.59090879]
[1727939867134,0.13,61186.0,61182.0,0.06522144]
[1727939867443,0.13,61183.0,61181.0,0.065382]
[1727939867841,0.13,61187.0,61181.0,0.06522144]
[1727939868040,0.13,61187.0,61183.0,0.06538]
[1727939868852,0.001,61186.0,61183.0,0.06538]
[1727939869345,0.001,61186.0,61175.0,1.88703711]
[1727939869645,0.13,61178.0,61175.0,1.88703711]
[1727939870940,0.001,61178.0,61175.0,1.88703711]
[1727939872136,0.001,61178.0,61175.0,1.95242611]
[1727939872444,0.002,61178.0,61175.0,1.95242611]
[1727939873246,0.002,61178.0,61177.0,0.195387]
[1727939873438,0.0038,61198.0,61183.0,0.13]
[1727939873638,0.06536,61202.0,61189.0,0.065374]
[1727939874038,0.06536,61202.0,61190.0,1.5]
[1727939874239,0.0934,61204.0,61190.0,1.5]
[1727939874443,0.0034519,61191.0,61190.0,1.5]
[1727939875043,0.001,61191.0,61190.0,1.5]
[1727939875345,0.13,61201.0,61191.0,0.065372]
[1727939876550,0.3608,61205.0,61195.0,0.195367]
[1727939876946,0.4908,61205.0,61195.0,0.195367]
[1727939877450,0.005,61201.0,61195.0,0.195367]
[1727939877643,0.005,61201.0,61191.0,0.13]
[1727939878042,0.002,61201.0,61191.0,0.13]
[1727939878347,0.13,61202.0,61190.0,1.5909151]
[1727939878744,0.008,61201.0,61190.0,1.5909151]
[1727939879149,0.008,61201.0,61195.0,0.13]
[1727939879347,0.01,61201.0,61195.0,0.13]
[1727939880749,0.006,61201.0,61195.0,0.13]
[1727939881447,0.005,61201.0,61195.0,0.13]
[1727939881652,0.005,61201.0,61199.0,0.13]
[1727939881856,0.005,61201.0,61200.0,0.0305]
[1727939882157,0.009,61201.0,61200.0,0.0305]
[1727939882363,0.008,61201.0,61200.0,0.0305]
[1727939882549,0.015,61201.0,61200.0,0.0305]
[1727939882751,0.015,61201.0,61197.0,0.0301]
[1727939883443,0.015,61201.0,61193.0,0.0312]
[1727939883947,0.025,61201.0,61193.0,0.0312]
[1727939884349,0.012,61201.0,61193.0,0.0312]
[1727939884549,0.022,61201.0,61193.0,0.0312]
[1727939884765,0.01,61201.0,61193.0,0.0312]
[1727939885059,0.011,61201.0,61193.0,0.0312]
[1727939885257,0.011,61201.0,61200.0,0.13]
[1727939885460,0.011,61201.0,61200.0,0.4908]
[1727939887165,0.018,61201.0,61200.0,0.4908]
[1727939887861,0.025,61201.0,61200.0,0.4908]
[1727939890863,0.025,61201.0,61200.0,0.3608]
[1727939891866,0.025,61201.0,61200.0,0.4908]
[1727939892056,0.3608,61211.0,61200.0,0.51657154]
[1727939892252,0.0646,61219.0,61209.0,0.195352]
[1727939892565,0.0646,61219.0,61210.0,1.5307]
[1727939892955,0.0646,61219.0,61213.0,0.13]
[1727939892956,0.0324,61219.0,61213.0,0.13]
[1727939893668,0.01145126,61214.0,61213.0,0.13]
[1727939894168,0.01145126,61214.0,61213.0,0.15656499]
[1727939894358,0.02045126,61214.0,61213.0,0.15656499]
[1727939894568,0.02045126,61214.0,61213.0,0.18686499]
[1727939894963,0.02045126,61214.0,61213.0,0.21916499]
[1727939895269,0.02045126,61214.0,61213.0,0.0303]
[1727939895562,0.02045126,61214.0,61210.0,1.5307]
[1727939895862,0.02045126,61214.0,61210.0,1.55665117]
[1727939896653,0.014,61214.0,61210.0,1.55665117]
[1727939896964,0.005,61214.0,61210.0,1.55665117]
[1727939897261,0.011,61214.0,61210.0,1.55665117]
[1727939901867,0.011,61214.0,61210.0,1.52595117]
[1727939902376,0.011,61214.0,61213.0,0.13]
[1727939902665,0.011,61214.0,61213.0,1.63]
[1727939902868,0.011,61214.0,61213.0,1.6623]
[1727939903564,0.011,61214.0,61213.0,1.728648]
[1727939903565,0.008,61214.0,61213.0,1.728648]
[1727939903755,0.0038,61222.0,61213.0,2.15338]
[1727939903962,0.3608,61226.0,61221.0,0.13]
[1727939904161,0.3608,61226.0,61225.0,0.13]
[1727939904365,0.426135,61226.0,61218.0,0.13]
[1727939904756,0.009,61222.0,61218.0,0.13]
[1727939904959,0.017,61222.0,61218.0,0.13]
[1727939905161,0.017,61222.0,61218.0,0.195343]
[1727939905361,0.017,61222.0,61221.0,0.13]
[1727939906572,0.009,61222.0,61221.0,0.13]
[1727939906871,0.009,61222.0,61221.0,0.1605]
[1727939907072,0.014,61226.0,61225.0,0.001]
[1727939907876,0.007,61222.0,61221.0,0.1625]
[1727939908376,0.007,61226.0,61225.0,0.001]
[1727939909764,0.014,61226.0,61225.0,0.002]
[1727939910573,0.007,61226.0,61225.0,0.001]
[1727939911271,0.011,61226.0,61225.0,0.002]
[1727939913583,0.011,61226.0,61215.0,0.0038]
[1727939913584,1.4618,61226.0,61215.0,0.0038]
[1727939913762,0.13,61220.0,61212.0,0.069149]
[1727939913961,0.065341,61220.0,61212.0,0.065349]
[1727939915265,0.0321,61223.0,61212.0,0.065349]
[1727939915568,0.002,61220.0,61217.0,0.13]
[1727939915768,0.002,61220.0,61211.0,0.38698604]
[1727939915769,0.002,61220.0,61219.0,0.13]
[1727939916368,0.002,61220.0,61216.0,0.13]
[1727939916775,0.002,61220.0,61211.0,0.38698604]
[1727939916776,0.13,61218.0,61211.0,0.38698604]
[1727939917095,0.0641,61219.0,61213.0,0.13]
[1727939917372,0.002,61223.0,61214.0,0.065347]
[1727939917584,0.008,61220.0,61219.0,0.001]
[1727939918669,0.018,61220.0,61219.0,0.002]
[1727939919067,0.01,61220.0,61219.0,0.001]
[1727939920178,0.017,61220.0,61219.0,0.002]
[1727939920676,1.10704,61220.0,61219.0,0.002]
[1727939922279,0.017,61220.0,61219.0,0.002]
[1727939925776,0.3778,61220.0,61219.0,0.002]
[1727939925979,0.017,61220.0,61219.0,0.002]
[1727939935081,0.3608,61226.0,61219.0,1.09204]
[1727939935286,0.3608,61226.0,61225.0,0.13]
[1727939935474,0.3608,61226.0,61221.0,0.06515557]
[1727939935785,0.3608,61226.0,61222.0,0.0325]
[1727939937090,0.3648,61226.0,61222.0,0.0325]
[1727939937286,0.001,61226.0,61222.0,0.0325]
[1727939937487,0.005,61226.0,61222.0,0.0335]
[1727939938187,0.005,61226.0,61222.0,0.0345]
[1727939939085,0.005,61226.0,61222.0,0.06034785]
[1727939942391,0.005,61226.0,61222.0,0.12568685]
[1727939943494,0.3608,61223.0,61222.0,0.002]
[1727939944387,0.3608,61223.0,61222.0,0.001]
[1727939944692,0.3618,61223.0,61222.0,0.002]
[1727939947295,0.3658,61223.0,61222.0,0.002]
[1727939947496,0.3658,61223.0,61222.0,0.001]
[1727939947695,0.3658,61223.0,61217.0,0.02572101]
[1727939947991,0.3658,61223.0,61218.0,0.065342]
[1727939949281,0.3658,61223.0,61214.0,1.60623967]
[1727939949488,0.005,61223.0,61220.0,0.06534]
[1727939949687,0.005,61223.0,61217.0,0.04894331]
[1727939949993,0.004,61223.0,61218.0,0.04894331]
[1727939950191,0.004,61223.0,61219.0,0.04894331]
[1727939950398,0.0038,61226.0,61225.0,0.065336]
[1727939950604,0.0038,61233.0,61231.0,0.065329]
[1727939950891,0.3298,61238.0,61231.0,0.065329]
[1727939951097,0.33212,61238.0,61231.0,0.065329]
[1727939951295,0.3298,61238.0,61232.0,1.5]
[1727939951784,0.004,61233.0,61232.0,1.5]
[1727939951988,0.004,61233.0,61232.0,1.63]
[1727939952193,0.00245038,61239.0,61232.0,1.63]
[1727939953193,0.00245038,61239.0,61232.0,1.5]
[1727939953691,0.00245038,61239.0,61232.0,1.502]
[1727939953898,0.00245038,61239.0,61232.0,1.505]
[1727939954488,0.3608,61237.0,61232.0,1.506]
[1727939954688,0.3608,61237.0,61232.0,1.508]
[1727939955598,0.3608,61237.0,61232.0,1.53235344]
[1727939956086,0.3608,61237.0,61232.0,1.52835344]
[1727939956285,0.3608,61237.0,61232.0,1.53035344]
[1727939957295,0.3608,61237.0,61232.0,1.53235344]
[1727939958094,0.3608,61237.0,61232.0,1.53035344]
[1727939959402,0.3608,61237.0,61233.0,0.13]
[1727939960601,0.3608,61237.0,61233.0,0.132]
[1727939960809,0.3608,61237.0,61233.0,0.002]
[1727939962900,0.13,61234.0,61233.0,0.002]
[1727939963094,0.16154663,61234.0,61233.0,0.002]
[1727939963297,0.68446663,61234.0,61233.0,0.002]
[1727939964705,0.19454663,61234.0,61233.0,0.002]
[1727939965198,0.19454622,61234.0,61233.0,0.002]
[1727939965393,0.163,61234.0,61233.0,0.001]
[1727939965602,0.19454647,61234.0,61233.0,0.002]
[1727939965801,0.19454621,61234.0,61233.0,0.002]
[1727939966098,0.163,61234.0,61233.0,0.002]
[1727939966502,0.13,61234.0,61233.0,0.002]
[1727939972300,1.21992,61234.0,61233.0,0.002]
[1727939973296,0.065331,61229.0,61228.0,0.0038]
[1727939973502,0.065333,61228.0,61220.0,0.429941]
[1727939973809,0.13,61225.0,61220.0,0.426141]
[1727939974419,0.13,61225.0,61220.0,0.45193945]
[1727939974599,0.124,61225.0,61220.0,0.45193945]
[1727939974802,0.124,61225.0,61224.0,0.01]
[1727939975302,0.124,61225.0,61220.0,0.45193945]
[1727939975612,0.124,61225.0,61220.0,0.47993945]
[1727939976013,0.13,61221.0,61220.0,0.3888]
[1727939976306,0.13,61221.0,61220.0,0.3748]
[1727939977304,0.195339,61222.0,61220.0,0.3608]
[1727939977810,0.001,61221.0,61220.0,0.3858]
[1727939978505,0.197339,61222.0,61220.0,0.3858]
[1727939979209,0.001,61221.0,61220.0,0.3748]
[1727939979515,0.002,61221.0,61220.0,0.3858]
[1727939980906,0.001,61221.0,61220.0,0.025]
[1727939981107,0.196339,61222.0,61220.0,0.011]
[1727939981406,0.197339,61222.0,61220.0,0.015]
[1727939981607,0.197339,61222.0,61220.0,0.004]
[1727939981802,0.002,61221.0,61220.0,0.015]
[1727939982412,0.001,61221.0,61220.0,0.015]
[1727939982610,0.197339,61222.0,61220.0,0.015]
[1727939984113,0.001,61221.0,61220.0,0.024]
[1727939985319,0.001,61221.0,61220.0,0.011]
[1727939985518,0.002,61221.0,61220.0,0.024]
[1727939987927,0.002,61221.0,61220.0,0.07293624]
[1727939988318,0.002,61221.0,61220.0,0.024]
[1727939991621,0.002,61221.0,61220.0,0.0571]
[1727939992220,0.002,61221.0,61220.0,0.10602421]
[1727939992528,0.0038,61230.0,61220.0,0.0571]
[1727939992718,0.0038,61230.0,61226.0,0.13]
[1727939992917,0.36316,61233.0,61226.0,0.13]
[1727939993118,0.0038,61235.0,61227.0,0.065333]
[1727939993321,0.0038,61235.0,61226.0,0.4908]
[1727939993322,0.065323,61237.0,61228.0,0.065332]
[1727939993620,0.0038,61238.0,61233.0,0.13]
[1727939993924,0.00245038,61239.0,61234.0,0.0316]
[1727939994917,0.001,61238.0,61234.0,0.0316]
[1727939995224,0.001,61238.0,61234.0,1.5316]
[1727939995825,0.001,61238.0,61237.0,0.13]
[1727939996023,0.001,61238.0,61235.0,0.0319]
[1727939996721,0.00345038,61239.0,61236.0,0.065323]
[1727939997022,0.0038,61243.0,61236.0,0.065323]
[1727939997023,0.0038,61243.0,61237.0,0.13]
[1727939997226,0.36312,61244.0,61242.0,0.13]
[1727939997433,0.3608,61244.0,61243.0,0.031]
[1727939998627,0.3708,61244.0,61243.0,0.031]
[1727939998826,0.3818,61244.0,61243.0,0.032]
[1727940000031,0.3828,61244.0,61243.0,0.033]
[1727940002728,0.022,61244.0,61243.0,0.033]
[1727940003131,0.022,61244.0,61243.0,0.05902208]
[1727940004413,0.015,61244.0,61243.0,0.05802208]
[1727940004833,0.004,61244.0,61243.0,0.05702208]
[1727940005013,0.007,61244.0,61243.0,0.05702208]
[1727940006523,0.007,61244.0,61243.0,0.06202208]
[1727940006524,0.003,61244.0,61243.0,0.06202208]
[1727940006727,0.001,61244.0,61243.0,0.13333808]
[1727940009222,0.3618,61244.0,61243.0,0.03702208]
[1727940009424,0.3618,61244.0,61243.0,0.011]
[1727940012925,1.45164,61244.0,61243.0,0.011]
[1727940016635,0.065323,61237.0,61236.0,0.0038]
[1727940016834,0.195323,61237.0,61229.0,0.00624927]
[1727940017046,0.13,61233.0,61229.0,0.00244927]
[1727940017826,0.116,61233.0,61229.0,0.00244927]
[1727940018532,0.117,61233.0,61229.0,0.01644927]
[1727940019338,0.001,61233.0,61229.0,0.08178027]
[1727940019942,0.3608,61232.0,61229.0,0.08178027]
[1727940020843,0.3608,61232.0,61229.0,0.07078027]
[1727940021041,0.3608,61232.0,61229.0,0.00544927]
[1727940021443,0.4908,61232.0,61229.0,0.00544927]
[1727940029738,0.3608,61232.0,61229.0,0.00544927]
[1727940032544,0.065326,61234.0,61229.0,0.00544927]
[1727940034850,0.065326,61234.0,61229.0,0.00444927]
[1727940035347,0.3608,61234.0,61229.0,0.00444927]
[1727940035552,0.06533,61231.0,61229.0,0.00444927]
[1727940037043,0.0316,61230.0,61229.0,0.00444927]
[1727940038147,0.0316,61230.0,61229.0,0.00244927]
[1727940038352,0.0316,61230.0,61229.0,0.00444927]
[1727940039750,0.0316,61230.0,61229.0,0.00244927]
[1727940040053,0.0436,61230.0,61229.0,0.00344927]
[1727940040551,0.0466,61230.0,61229.0,0.00344927]
[1727940041346,0.0406,61230.0,61229.0,0.00244927]
[1727940041555,0.0486,61230.0,61229.0,0.00344927]
[1727940042254,0.0446,61230.0,61229.0,0.00344927]
[1727940042755,0.0466,61230.0,61229.0,0.00344927]
[1727940042954,0.0406,61230.0,61229.0,0.00244927]
[1727940043165,0.0486,61230.0,61229.0,0.00344927]
[1727940043348,0.0466,61230.0,61229.0,0.001]
[1727940043548,1.49736,61230.0,61229.0,0.001]
[1727940043858,0.89036,61230.0,61229.0,0.001]
[1727940044052,1.49936,61230.0,61229.0,0.001]
[1727940044455,1.49136,61230.0,61223.0,0.0038]
[1727940044673,0.13,61224.0,61222.0,0.0489423]
[1727940045866,0.195337,61224.0,61220.0,0.05617371]
[1727940046268,0.200337,61224.0,61220.0,0.05617371]
[1727940046865,0.200337,61224.0,61217.0,0.0489423]
[1727940046866,0.3608,61221.0,61217.0,0.0489423]
[1727940047081,0.13,61219.0,61212.0,0.0527423]
[1727940047377,0.13,61219.0,61208.0,0.0690564]
[1727940047378,0.13,61213.0,61209.0,1.5]
[1727940048772,0.131,61213.0,61209.0,1.506]
[1727940049679,0.132,61213.0,61209.0,1.506]
[1727940050967,0.002,61213.0,61211.0,0.19535]
[1727940052471,0.001,61213.0,61211.0,0.19535]
[1727940052679,0.002,61213.0,61211.0,0.20135]
[1727940052876,0.002,61213.0,61212.0,1.5]
[1727940054083,0.002,61213.0,61212.0,1.506]
[1727940056180,0.002,61213.0,61212.0,1.5549423]
[1727940056481,0.002,61213.0,61212.0,1.506]
[1727940057385,0.002,61213.0,61212.0,1.5549423]
[1727940057974,0.132,61213.0,61212.0,1.506]
[1727940058280,0.132,61213.0,61212.0,0.006]
[1727940058281,0.197348,61213.0,61212.0,0.006]
[1727940058871,0.0038,61218.0,61212.0,0.006]
[1727940059074,0.0038,61222.0,61217.0,0.13]
[1727940059283,0.00625095,61226.0,61221.0,0.17885916]
[1727940059488,0.00245095,61226.0,61221.0,0.04886491]
[1727940059679,0.00245095,61226.0,61222.0,0.04886491]
[1727940059875,0.00245095,61226.0,61223.0,0.04886491]
[1727940060470,0.00645095,61226.0,61223.0,0.04886491]
[1727940060878,0.00845095,61226.0,61223.0,0.04886491]
[1727940061084,0.00845095,61226.0,61224.0,0.04886491]
[1727940061580,0.01445095,61226.0,61224.0,0.04886491]
[1727940061878,0.01445095,61226.0,61223.0,0.04986491]
[1727940062084,0.01445095,61226.0,61224.0,0.0316]
[1727940062785,0.01545095,61226.0,61224.0,0.08146491]
[1727940063085,0.01545095,61226.0,61225.0,0.04886491]
[1727940063280,0.01545095,61226.0,61225.0,0.17886491]
[1727940063582,0.01645095,61226.0,61225.0,0.13]
[1727940064284,0.00945095,61226.0,61225.0,0.13]
[1727940064586,0.01845095,61226.0,61225.0,0.4918]
[1727940065878,0.0038,61231.0,61225.0,1.5818]
[1727940066077,0.0038,61235.0,61226.0,1.5]
[1727940066279,0.13505256,61236.0,61226.0,1.5]
[1727940066789,0.13505256,61236.0,61227.0,0.065332]
[1727940067389,0.007,61231.0,61227.0,0.065332]
[1727940067980,0.13605256,61236.0,61227.0,0.065332]
[1727940068283,0.13605256,61236.0,61227.0,0.070332]
[1727940068876,0.13605256,61236.0,61227.0,0.069332]
[1727940069580,0.13605256,61236.0,61228.0,0.065332]
[1727940069981,0.13505256,61236.0,61228.0,0.065332]
[1727940070180,0.13505256,61236.0,61229.0,0.0313]
[1727940071182,0.13,61234.0,61229.0,0.0313]
[1727940071391,0.13,61230.0,61227.0,0.004]
[1727940072190,0.13,61230.0,61226.0,1.5]
[1727940072388,0.13,61230.0,61229.0,0.002]
[1727940073095,0.13,61230.0,61229.0,0.005]
[1727940073593,0.13,61230.0,61229.0,0.002]
[1727940073893,0.134,61230.0,61229.0,0.002]
[1727940074084,0.136,61230.0,61226.0,1.5]
[1727940074984,0.135,61230.0,61226.0,1.5]
[1727940075187,0.005,61230.0,61226.0,1.5]
[1727940075383,0.005,61230.0,61228.0,0.065332]
[1727940075584,0.004,61230.0,61229.0,0.0323]
[1727940075993,0.0038,61235.0,61229.0,1.12226]
[1727940076192,0.13,61250.0,61229.0,1.12226]
[1727940076193,0.3608,61250.0,61234.0,0.3608]
[1727940076390,0.065303,61256.0,61249.0,0.13]
[1727940076594,0.3608,61258.0,61253.0,0.13]
[1727940077393,0.3608,61258.0,61250.0,0.033]
[1727940077799,0.3748,61258.0,61253.0,0.001]
[1727940078294,0.3788,61258.0,61253.0,0.002]
[1727940078999,0.3738,61258.0,61253.0,0.001]
[1727940080395,0.3738,61258.0,61250.0,0.05831644]
[1727940080396,0.3658,61258.0,61250.0,0.05831644]
[1727940080707,0.3708,61258.0,61250.0,0.05831644]
[1727940081600,0.3648,61258.0,61250.0,0.05831644]
[1727940086494,0.3608,61257.0,61256.0,0.13]
[1727940086699,0.004,61258.0,61256.0,0.13]
[1727940087209,0.004,61258.0,61253.0,0.13]
[1727940087609,0.009,61257.0,61256.0,0.001]
[1727940087803,0.009,61257.0,61256.0,0.002]
[1727940087804,0.017,61257.0,61256.0,0.002]
[1727940088203,0.008,61257.0,61256.0,0.002]
[1727940088707,0.008,61257.0,61256.0,0.001]
[1727940089006,0.017,61257.0,61256.0,0.002]
[1727940089603,0.009,61257.0,61256.0,0.001]
[1727940090400,0.139,61257.0,61256.0,0.001]
[1727940090603,0.1793,61257.0,61256.0,0.002]
[1727940093807,0.0493,61257.0,61256.0,0.002]
[1727940094509,0.017,61257.0,61256.0,0.002]
[1727940097111,0.017,61257.0,61256.0,0.0324]
[1727940101514,0.017,61257.0,61256.0,0.002]
[1727940106323,0.017,61257.0,61256.0,0.05081225]
[1727940108224,0.017,61257.0,61256.0,0.002]
[1727940108630,0.017,61257.0,61256.0,0.132]
[1727940108932,0.017,61257.0,61256.0,0.24599805]
[1727940109133,0.3646,61265.0,61256.0,0.24599805]
[1727940109336,0.3608,61265.0,61264.0,0.13]
[1727940110437,0.3608,61265.0,61264.0,0.17890643]
[1727940110731,0.3638,61265.0,61264.0,0.131]
[1727940111639,0.3658,61265.0,61264.0,0.131]
[1727940112138,0.3658,61265.0,61264.0,0.132]
[1727940112632,0.005,61265.0,61264.0,0.132]
[1727940112930,0.005,61265.0,61264.0,0.05089468]
[1727940113733,0.005,61265.0,61264.0,0.18089468]
[1727940113931,0.005,61265.0,61264.0,0.132]
[1727940114539,0.0303,61282.0,61270.0,0.065288]
[1727940114748,0.0038,61280.0,61275.0,0.065282]
[1727940114936,0.065273,61284.0,61279.0,0.13]
[1727940115138,0.0301,61286.0,61279.0,0.13]
[1727940115442,0.426067,61290.0,61279.0,0.195277]
[1727940115443,0.428427,61290.0,61279.0,0.195277]
[1727940115633,0.428427,61290.0,61280.0,1.5]
[1727940115833,0.428427,61290.0,61281.0,0.04888034]
[1727940116040,0.428427,61290.0,61280.0,1.8608]
[1727940116041,0.426067,61290.0,61287.0,0.13]
[1727940118539,0.426067,61290.0,61287.0,0.132]
[1727940119047,0.3608,61290.0,61287.0,0.132]
[1727940119240,0.3608,61290.0,61288.0,1.5608]
[1727940119442,0.3608,61300.0,61288.0,1.5608]
[1727940119629,0.065248,61307.0,61295.0,0.13]
[1727940120338,0.065248,61307.0,61296.0,0.48944]
[1727940120540,0.065248,61307.0,61306.0,0.13]
[1727940121141,0.13,61308.0,61295.0,0.0038]
[1727940121445,0.065257,61299.0,61294.0,0.13]
[1727940121636,0.065254,61302.0,61296.0,0.001]
[1727940121840,0.13,61304.0,61296.0,0.001]
[1727940122044,0.065257,61299.0,61296.0,0.001]
[1727940122248,0.065257,61299.0,61294.0,0.13]
[1727940123341,0.065258,61298.0,61294.0,0.13]
[1727940124444,0.065258,61298.0,61296.0,0.001]
[1727940124858,0.065258,61298.0,61294.0,0.13]
[1727940125039,0.001,61298.0,61289.0,0.05768776]
[1727940125245,0.001,61298.0,61297.0,0.13]
[1727940126654,0.3608,61311.0,61304.0,0.06525]
[1727940126872,0.0044,61332.0,61310.0,0.13]
[1727940126873,0.3608,61319.0,61310.0,0.13]
[1727940127182,0.3608,61319.0,61317.0,0.13]
[1727940127539,0.3608,61319.0,61313.0,0.13]
[1727940128245,0.3618,61319.0,61317.0,0.001]
[1727940128448,0.427036,61319.0,61317.0,0.001]
[1727940129050,0.427036,61319.0,61313.0,0.132]
[1727940129451,0.001,61319.0,61317.0,0.13]
[1727940129760,0.001,61319.0,61317.0,0.131]
[1727940130060,0.001,61319.0,61318.0,1.5]
[1727940130854,0.065229,61325.0,61318.0,1.5]
[1727940131049,0.0305,61332.0,61323.0,0.13]
[1727940131265,0.065225,61329.0,61323.0,0.13]
[1727940132545,0.065225,61329.0,61323.0,0.131]
[1727940132956,0.065227,61328.0,61323.0,0.132]
[1727940133141,0.13,61330.0,61323.0,0.002]
[1727940133346,0.0305,61332.0,61323.0,0.002]
[1727940133347,0.065229,61325.0,61323.0,0.002]
[1727940134670,0.3608,61327.0,61323.0,0.002]
[1727940137653,0.426027,61327.0,61323.0,0.002]
[1727940137854,0.3608,61327.0,61323.0,0.002]
[1727940138162,0.065229,61325.0,61323.0,0.002]
[1727940139163,0.065229,61325.0,61323.0,0.001]
[1727940139461,0.065229,61325.0,61323.0,0.002]
[1727940142053,0.13,61324.0,61323.0,0.002]
[1727940142668,0.6192,61324.0,61323.0,0.002]
[1727940143252,1.2192,61324.0,61323.0,0.002]
[1727940143658,0.6192,61324.0,61323.0,0.002]
[1727940143868,0.98,61324.0,61323.0,0.002]
[1727940144355,0.4908,61324.0,61323.0,0.002]
[1727940146971,0.3608,61324.0,61323.0,0.002]
[1727940156363,0.3608,61324.0,61316.0,0.0038]
[1727940156364,0.065238,61317.0,61316.0,0.0038]